{"text_format":"3","workbook":"xlsx","n_sheets":4,"sheets":["Początek","Wydatki","Przychód","Podsumowanie zysków i strat"],"not_rendered":{"charts":1},"read":"whole","date_system":"1900"}

{"sheet":"Początek","index":0,"n_rows":8,"n_cols":2,"rows_kept":8}
[null,"INFORMACJE O TYM SZABLONIE"]
[null,"Ten skoroszyt budżetu wydarzenia umożliwia śledzenie poniesionych wydatków i uzyskanego przychodu w ramach wydarzenia."]
[null,"Wprowadź nazwę wydarzenia i szczegółowe informacje w tabelach w arkuszach Wydatki i Przychód."]
[null,"Suma wydatków i łączny przychód zostaną obliczone automatycznie."]
[null,"Wykres i podsumowanie zysków i strat są aktualizowane automatycznie w arkuszu Podsumowanie zysków i strat."]
[null,"Uwaga: "]
[null,"W kolumnie A w każdym arkuszu podano dodatkowe instrukcje. Ten tekst celowo został ukryty. Aby usunąć tekst, zaznacz kolumnę A, a następnie naciśnij klawisz DELETE. "]
[null,"Aby uzyskać więcej informacji o tabelach, w tabeli naciśnij klawisz SHIFT, a następnie F10, wybierz pozycję TABELA, a następnie TEKST ALTERNATYWNY"]

{"sheet":"Wydatki","index":1,"n_rows":32,"n_cols":8,"rows_kept":32,"merged":[[0,1,0,2],[0,3,0,4],[2,1,3,1]]}
["W odpowiednich tabelach w tym arkuszu wprowadź szacowane i rzeczywiste wydatki dla każdej kategorii. W komórce D1 wprowadź nazwę wydarzenia, aby dostosować tytuł tego i innych arkuszy. W komórce H1 znajduje się podtytuł tego arkusza. W komórkach w tej kolumnie podano przydatne instrukcje na temat korzystania z tego arkusza. Dalsze instrukcje znajdują się w komórce A3.","Budżet wydarzenia",null,"Nazwa wydarzenia",{"$nulls":3},"WYDATKI"]
[]
["W komórce po prawej stronie znajduje się etykieta Suma wydatków, w komórce G3 — etykieta Szacowane, a w komórce H3 — etykieta Rzeczywiste.","SUMA WYDATKÓW",{"$nulls":4},"Szacowane","Rzeczywiste"]
["Suma szacowanych wydatków w komórce G4 i suma rzeczywistych wydatków w komórce H4 są obliczane automatycznie. Dalsze instrukcje znajdują się w komórce A6.",{"$nulls":5},{"$f":"SUM(C11,C19,C25,C32,G11,G19,G24)","v":{"v":882,"d":"$882.00"}},{"$f":"SUM(D11,D19,D25,D32,H11,H19,H24)","v":{"v":302,"d":"$302.00"}}]
[]
["W tabeli zaczynającej się w komórce po prawej stronie wprowadź wydatki dotyczące miejsca, a w tabeli zaczynającej się w komórce F6 — wydatki na poczęstunek. Dalsze instrukcje znajdują się w komórce A13.","Miejsce","Szacowane","Rzeczywiste",null,"Poczęstunek","Szacowane","Rzeczywiste"]
[null,"Opłaty za pomieszczenia",{"v":500,"d":"500.00 zł"},null,null,"Żywność"]
[null,"Personel na miejscu",{"$nulls":3},"Napoje",{"v":20,"d":"20.00 zł"}]
[null,"Wyposażenie",{"$nulls":3},"Obrusy",null,{"v":20,"d":"20.00 zł"}]
[null,"Stoły i krzesła",{"$nulls":3},"Personel i napiwki"]
[null,"Suma",{"$f":"SUBTOTAL(109,WydatkiNaMiejscu[Szacowane])","v":{"v":500,"d":"500.00 zł"}},{"$f":"SUBTOTAL(103,WydatkiNaMiejscu[Rzeczywiste])","v":{"v":0,"d":"0.00 zł"}},null,"Suma",{"$f":"SUBTOTAL(109,KosztyPoczęstunku[Szacowane])","v":{"v":20,"d":"20.00 zł"}},{"$f":"SUBTOTAL(103,KosztyPoczęstunku[Rzeczywiste])","v":{"v":1,"d":"1.00 zł"}}]
[]
["W tabeli zaczynającej się w komórce po prawej stronie wprowadź wydatki na dekoracje, a w tabeli zaczynającej się w komórce F13 — wydatki dotyczące programu. Dalsze instrukcje znajdują się w komórce A21.","Dekoracje","Szacowane","Rzeczywiste",null,"Program","Szacowane","Rzeczywiste"]
[null,"Kwiaty",{"v":200,"d":"200.00 zł"},{"v":300,"d":"300.00 zł"},null,"Artyści"]
[null,"Świece",{"$nulls":3},"Prelegenci",{"v":30,"d":"30.00 zł"}]
[null,"Oświetlenie",{"$nulls":3},"Podróże"]
[null,"Balony",{"$nulls":3},"Hotel"]
[null,"Materiały papiernicze",{"$nulls":3},"Inne"]
[null,"Suma",{"$f":"SUBTOTAL(109,KosztyDekoracji[Szacowane])","v":{"v":200,"d":"200.00 zł"}},{"$f":"SUBTOTAL(109,KosztyDekoracji[Rzeczywiste])","v":{"v":300,"d":"300.00 zł"}},null,"Suma",{"$f":"SUBTOTAL(109,KosztyProgramu[Szacowane])","v":{"v":30,"d":"30.00 zł"}},{"$f":"SUBTOTAL(103,KosztyProgramu[Rzeczywiste])","v":{"v":0,"d":"0.00 zł"}}]
[]
["W tabeli zaczynającej się w komórce po prawej stronie wprowadź wydatki na promocję, a w tabeli zaczynającej się w komórce F21 — wydatki na nagrody. Dalsze instrukcje znajdują się w komórce A27.","Promocja","Szacowane","Rzeczywiste",null,"Nagrody","Szacowane","Rzeczywiste"]
[null,"Prace graficzne",{"$nulls":3},"Wstęgi/Odznaki/Trofea"]
[null,"Fotokopie/druk",{"v":20,"d":"20.00 zł"},null,null,"Prezenty",{"v":100,"d":"100.00 zł"}]
[null,"Opłaty pocztowe",{"$nulls":3},"Suma",{"$f":"SUBTOTAL(109,KosztyNagród[Szacowane])","v":{"v":100,"d":"100.00 zł"}},{"$f":"SUBTOTAL(103,KosztyNagród[Rzeczywiste])","v":{"v":0,"d":"0.00 zł"}}]
[null,"Suma",{"$f":"SUBTOTAL(109,KosztyPromocji[Szacowane])","v":{"v":20,"d":"20.00 zł"}},{"$f":"SUBTOTAL(103,KosztyPromocji[Rzeczywiste])","v":{"v":0,"d":"0.00 zł"}}]
[]
["W tabeli zaczynającej się w komórce po prawej stronie wprowadź wydatki różne.","Różne","Szacowane","Rzeczywiste"]
[null,"Telefon",null,{"v":13,"d":"13.00 zł"}]
[null,"Transport",{"v":12,"d":"12.00 zł"}]
[null,"Materiały biurowe"]
[null,"Usługi faksowe"]
[null,"Suma",{"$f":"SUBTOTAL(109,KosztyPozostałe[Szacowane])","v":{"v":12,"d":"12.00 zł"}},{"$f":"SUBTOTAL(103,KosztyPozostałe[Rzeczywiste])","v":{"v":1,"d":"1.00 zł"}}]

{"sheet":"Przychód","index":2,"n_rows":29,"n_cols":7,"rows_kept":29,"merged":[[0,1,0,2],[2,1,3,1]]}
["W odpowiednich tabelach w tym arkuszu wprowadź szacowany i rzeczywisty przychód dla każdej kategorii. W komórkach po prawej stronie jest automatycznie aktualizowany tytuł tego arkusza. Podtytuł znajduje się w komórce G1. W komórkach w tej kolumnie podano przydatne instrukcje na temat korzystania z tego arkusza. Dalsze instrukcje znajdują się w komórce A3.",{"$f":"Wydatki!B1","v":"Budżet wydarzenia"},null,{"$f":"Wydatki!D1","v":"Nazwa wydarzenia"},null,null,"PRZYCHÓD"]
[]
["W komórce po prawej stronie znajduje się etykieta Łączny przychód, w komórce F3 — etykieta Szacowane, a w komórce G3 — etykieta Rzeczywiste.","ŁĄCZNY PRZYCHÓD",{"$nulls":3},"Szacowane","Rzeczywiste"]
["W komórce F4 jest automatycznie obliczany łączny szacowany przychód, a w komórce G4 — łączny rzeczywisty przychód.",{"$nulls":4},{"$f":"SUM(Wpisowe[[#Totals],[Szacowany przychód]],ReklamyWProgramie[[#Totals],[Szacowany przychód]],WystawcyIDostawcy[[#Totals],[Szacowany przychód]],SprzedażArtykułów[[#Totals],[Szacowany przychód]])","v":{"v":1936,"d":"1,936.00 zł"}},{"$f":"SUM(Wpisowe[[#Totals],[Rzeczywisty przychód]],ReklamyWProgramie[[#Totals],[Rzeczywisty przychód]],WystawcyIDostawcy[[#Totals],[Rzeczywisty przychód]],SprzedażArtykułów[[#Totals],[Rzeczywisty przychód]])","v":{"v":1831,"d":"1,831.00 zł"}}]
["W komórce po prawej stronie znajduje się etykieta Bilety wstępu.","BILETY WSTĘPU"]
["W tabeli zaczynającej się w komórce po prawej stronie wprowadź szacowaną i rzeczywistą liczbę biletów wstępu wraz z różnymi cenami biletów. Szacowany i rzeczywisty przychód z biletów są obliczane automatycznie. Dalsze instrukcje znajdują się w komórce A11.","Liczba szacowana","Liczba rzeczywista","Typ","Cena","Szacowany przychód","Rzeczywisty przychód"]
[null,300,278,"Dorośli w cenie",{"v":5,"d":"5.00 zł"},{"$f":"B7*E7","v":{"v":1500,"d":"1,500.00 zł"}},{"$f":"C7*E7","v":{"v":1390,"d":"1,390.00 zł"}}]
[null,197,195,"Dzieci w cenie",{"v":2,"d":"2.00 zł"},{"$f":"B8*E8","v":{"v":394,"d":"394.00 zł"}},{"$f":"C8*E8","v":{"v":390,"d":"390.00 zł"}}]
[null,42,51,"Inne w cenie",{"v":1,"d":"1.00 zł"},{"$f":"B9*E9","v":{"v":42,"d":"42.00 zł"}},{"$f":"C9*E9","v":{"v":51,"d":"51.00 zł"}}]
[null,"Suma",{"$nulls":3},{"$f":"SUBTOTAL(109,Wpisowe[Szacowany przychód])","v":{"v":1936,"d":"1,936.00 zł"}},{"$f":"SUBTOTAL(109,Wpisowe[Rzeczywisty przychód])","v":{"v":1831,"d":"1,831.00 zł"}}]
["W komórce po prawej stronie znajduje się etykieta Reklamy w programie.","REKLAMY W PROGRAMIE"]
["W tabeli zaczynającej się w komórce po prawej stronie wprowadź szacowaną i rzeczywistą liczbę reklam w programie. Szacowany i rzeczywisty przychód z reklam są obliczane automatycznie. Dalsze instrukcje znajdują się w komórce A17.","Liczba szacowana","Liczba rzeczywista","Typ","Cena","Szacowany przychód","Rzeczywisty przychód"]
[null,12,null,"Okładki w cenie",null,{"$f":"B13*E13","v":{"v":0,"d":"0.00 zł"}},{"$f":"C13*E13","v":{"v":0,"d":"0.00 zł"}}]
[null,null,158,"Połowy stron w cenie",null,{"$f":"B14*E14","v":{"v":0,"d":"0.00 zł"}},{"$f":"C14*E14","v":{"v":0,"d":"0.00 zł"}}]
[null,4,null,"Ćwiartki stron w cenie",null,{"$f":"B15*E15","v":{"v":0,"d":"0.00 zł"}},{"$f":"C15*E15","v":{"v":0,"d":"0.00 zł"}}]
[null,"Suma",{"$nulls":3},{"$f":"SUBTOTAL(109,ReklamyWProgramie[Szacowany przychód])","v":{"v":0,"d":"0.00 zł"}},{"$f":"SUBTOTAL(109,ReklamyWProgramie[Rzeczywisty przychód])","v":{"v":0,"d":"0.00 zł"}}]
["W komórce po prawej stronie znajduje się etykieta Wystawcy/sprzedawcy.","WYSTAWCY/SPRZEDAWCY"]
["W tabeli zaczynającej się w komórce po prawej stronie wprowadź szacowaną i rzeczywistą liczbę wystawców lub sprzedawców wraz z różnymi cenami stoisk. Szacowany i rzeczywisty przychód są obliczane automatycznie. Dalsze instrukcje znajdują się w komórce A23.","Liczba szacowana","Liczba rzeczywista","Typ","Cena","Szacowany przychód","Rzeczywisty przychód"]
[null,23,null,"Duże stoiska w cenie",null,{"$f":"B19*E19","v":{"v":0,"d":"0.00 zł"}},{"$f":"C19*E19","v":{"v":0,"d":"0.00 zł"}}]
[null,354,null,"Średnie stoiska w cenie",null,{"$f":"B20*E20","v":{"v":0,"d":"0.00 zł"}},{"$f":"C20*E20","v":{"v":0,"d":"0.00 zł"}}]
[null,56,null,"Małe stoiska w cenie",null,{"$f":"B21*E21","v":{"v":0,"d":"0.00 zł"}},{"$f":"C21*E21","v":{"v":0,"d":"0.00 zł"}}]
[null,"Suma",{"$nulls":3},{"$f":"SUBTOTAL(109,WystawcyIDostawcy[Szacowany przychód])","v":{"v":0,"d":"0.00 zł"}},{"$f":"SUBTOTAL(109,WystawcyIDostawcy[Rzeczywisty przychód])","v":{"v":0,"d":"0.00 zł"}}]
["W komórce po prawej stronie znajduje się etykieta Sprzedaż produktów.","SPRZEDAŻ PRODUKTÓW"]
["W tabeli zaczynającej się w komórce po prawej stronie wprowadź szacowaną i rzeczywistą liczbę sprzedanych produktów wraz z cenami. Szacowany i rzeczywisty przychód są obliczane automatycznie.","Liczba szacowana","Liczba rzeczywista","Typ","Cena","Szacowany przychód","Rzeczywisty przychód"]
[{"$nulls":3},"Produkty w cenie",null,{"$f":"B25*E25","v":{"v":0,"d":"0.00 zł"}},{"$f":"C25*E25","v":{"v":0,"d":"0.00 zł"}}]
[null,123,null,"Produkty w cenie",null,{"$f":"B26*E26","v":{"v":0,"d":"0.00 zł"}},{"$f":"C26*E26","v":{"v":0,"d":"0.00 zł"}}]
[{"$nulls":3},"Produkty w cenie",null,{"$f":"B27*E27","v":{"v":0,"d":"0.00 zł"}},{"$f":"C27*E27","v":{"v":0,"d":"0.00 zł"}}]
[null,13,null,"Produkty w cenie",null,{"$f":"B28*E28","v":{"v":0,"d":"0.00 zł"}},{"$f":"C28*E28","v":{"v":0,"d":"0.00 zł"}}]
[null,"Suma",{"$nulls":3},{"$f":"SUBTOTAL(109,SprzedażArtykułów[Szacowany przychód])","v":{"v":0,"d":"0.00 zł"}},{"$f":"SUBTOTAL(109,SprzedażArtykułów[Rzeczywisty przychód])","v":{"v":0,"d":"0.00 zł"}}]

{"sheet":"Podsumowanie zysków i strat","index":3,"n_rows":8,"n_cols":7,"rows_kept":8,"merged":[[0,1,0,2]]}
["W tym arkuszu są automatycznie aktualizowane podsumowanie zysków i strat oraz wykres przedstawiający łączny przychód i wydatki. W komórkach po prawej stronie jest automatycznie aktualizowany tytuł tego arkusza. Komórki G1 i G2 zawierają podtytuł. W komórkach w tej kolumnie podano przydatne instrukcje na temat korzystania z tego arkusza. Dalsze instrukcje znajdują się w komórce A3.",{"$f":"Wydatki!B1","v":"Budżet wydarzenia"},null,{"$f":"Wydatki!D1","v":"Nazwa wydarzenia"},null,null,"Podsumowanie "]
[{"$nulls":6},"zysków i strat"]
["W komórce E3 znajduje się wykres słupkowy przedstawiający porównanie szacowanego przychodu i wydatków z rzeczywistym przychodem i wydatkami.",{"$nulls":3},"W tej komórce znajduje się wykres słupkowy przedstawiający porównanie szacowanego przychodu i wydatków z rzeczywistym przychodem i wydatkami."]
["Tabela podsumowania zaczynająca się w komórce po prawej stronie jest aktualizowana automatycznie. Dalsze instrukcje znajdują się w komórce A8."," Suma","Szacowane","Rzeczywiste"]
[null,"Łączny przychód",{"$f":"Przychód!F10","v":{"v":1936,"d":"1,936.00 zł"}},{"$f":"Przychód!F4","v":{"v":1936,"d":"1,936.00 zł"}}]
[null,"Suma wydatków",{"$f":"Wydatki!G4","v":{"v":882,"d":"882.00 zł"}},{"$f":"Wydatki!H4","v":{"v":302,"d":"302.00 zł"}}]
[]
["W komórce C8 jest automatycznie obliczany szacowany całkowity zysk lub strata, a w komórce D8 — rzeczywisty całkowity zysk lub strata.","Łączny zysk\n(lub strata)",{"$f":"C5-C6","v":{"v":1054,"d":"1,054.00 zł"}},{"$f":"D5-D6","v":{"v":1634,"d":"1,634.00 zł"}}]